bitfinex-derivatives/quotes_BTCF0:USTF0_20220103
["timestamp","ask_amount","ask_price","bid_price","bid_amount"]
[1641186844315,0.23991195,46784.0,46783.0,0.01211476]
[1641186844616,0.24467591,46784.0,46783.0,0.01211476]
[1641186845015,0.24467591,46784.0,46783.0,0.195]
[1641186845215,0.24467591,46784.0,46783.0,0.20711476]
[1641186846418,0.24467591,46784.0,46783.0,0.01211476]
[1641186846718,0.24467591,46784.0,46781.0,0.01211476]
[1641186847123,0.24467591,46784.0,46783.0,0.194]
[1641186847319,0.24467591,46784.0,46783.0,0.20611476]
[1641186848119,0.24467591,46784.0,46783.0,0.31373125]
[1641186848320,0.24467591,46784.0,46783.0,0.01211476]
[1641186848829,0.24467591,46784.0,46783.0,0.10849121]
[1641186849029,0.33267591,46784.0,46783.0,0.20111476]
[1641186849332,0.22467591,46784.0,46783.0,0.20111476]
[1641186849530,0.33267591,46784.0,46783.0,0.22248984]
[1641186850031,0.33267591,46784.0,46783.0,0.33097631]
[1641186850233,0.22467591,46784.0,46783.0,0.33097631]
[1641186850735,1.06906625,46784.0,46783.0,0.33097631]
[1641186851133,0.98106625,46784.0,46783.0,0.33597631]
[1641186851533,0.98106625,46784.0,46783.0,0.22748984]
[1641186851734,0.98106625,46784.0,46783.0,1.66874118]
[1641186852337,1.08906625,46784.0,46783.0,1.66874118]
[1641186852534,0.24467591,46784.0,46783.0,0.14196805]
[1641186853136,0.13667591,46784.0,46783.0,0.33696805]
[1641186853539,0.91023134,46784.0,46783.0,0.65650005]
[1641186853738,1.01823134,46784.0,46783.0,0.65650005]
[1641186853939,1.01823134,46784.0,46783.0,0.33696805]
[1641186854140,0.91023134,46784.0,46783.0,0.33696805]
[1641186854340,0.84932104,46784.0,46783.0,0.33696805]
[1641186854640,0.84932104,46784.0,46783.0,1.47474118]
[1641186854641,0.00476396,46784.0,46783.0,1.47474118]
[1641186855144,0.00476396,46784.0,46783.0,1.66974118]
[1641186855341,0.84932104,46784.0,46783.0,0.33696805]
[1641186856443,0.84932104,46784.0,46783.0,1.47474118]
[1641186857043,0.00476396,46784.0,46783.0,0.14196805]
[1641186857244,0.00476396,46784.0,46783.0,0.65957505]
[1641186858045,0.00476396,46784.0,46783.0,0.33796805]
[1641186858445,0.00476396,46784.0,46783.0,0.14196805]
[1641186859246,0.84932104,46784.0,46783.0,1.67074118]
[1641186860150,0.00476396,46784.0,46783.0,1.67074118]
[1641186860446,0.00476396,46784.0,46783.0,1.47474118]
[1641186861149,0.00476396,46784.0,46783.0,1.6493661]
[1641186861750,0.84932104,46784.0,46783.0,0.31659297]
[1641186862453,0.00476396,46784.0,46783.0,0.12059297]
[1641186863257,0.00476396,46784.0,46783.0,0.31959297]
[1641186864454,0.00476396,46784.0,46783.0,0.12059297]
[1641186865157,0.00476396,46784.0,46783.0,0.31759297]
[1641186865355,0.00476396,46784.0,46783.0,0.45792864]
[1641186866557,0.00476396,46784.0,46783.0,0.26092864]
[1641186867159,0.00476396,46784.0,46783.0,0.45792864]
[1641186868461,0.00476396,46784.0,46783.0,0.26092864]
[1641186868864,0.13802874,46784.0,46783.0,0.26092864]
[1641186869162,0.13802874,46784.0,46783.0,0.45692864]
[1641186870466,0.13802874,46784.0,46783.0,0.26092864]
[1641186871165,0.13802874,46784.0,46783.0,0.45792864]
[1641186872565,0.13802874,46784.0,46783.0,0.26092864]
[1641186873070,0.98254765,46784.0,46783.0,0.26092864]
[1641186873266,0.98254765,46784.0,46783.0,0.45992864]
[1641186874367,0.13802874,46784.0,46783.0,0.45992864]
[1641186874568,0.13802874,46784.0,46783.0,0.26092864]
[1641186875185,0.13802874,46784.0,46783.0,0.45792864]
[1641186876487,0.13802874,46784.0,46783.0,0.26092864]
[1641186877187,0.13802874,46784.0,46783.0,0.45792864]
[1641186878291,0.98212937,46784.0,46783.0,0.45792864]
[1641186878691,0.98212937,46784.0,46783.0,0.26092864]
[1641186878991,0.13802874,46784.0,46783.0,0.26092864]
[1641186879189,0.13802874,46784.0,46783.0,0.45792864]
[1641186879895,0.98212937,46784.0,46783.0,1.66915851]
[1641186880493,0.98212937,46784.0,46783.0,1.47215851]
[1641186880995,0.98212937,46784.0,46783.0,0.26092864]
[1641186881194,0.13802874,46784.0,46783.0,0.45792864]
[1641186881393,0.13802874,46784.0,46783.0,0.34945043]
[1641186881696,0.13802874,46784.0,46783.0,0.45667419]
[1641186882495,0.13802874,46784.0,46783.0,0.25967419]
[1641186882895,0.13802874,46784.0,46783.0,0.28104952]
[1641186883299,0.13802874,46784.0,46783.0,0.47904952]
[1641186884497,0.13802874,46784.0,46783.0,0.28104952]
[1641186885197,0.13802874,46784.0,46783.0,0.47904952]
[1641186885499,0.00476396,46784.0,46783.0,0.47904952]
[1641186886500,0.00476396,46784.0,46783.0,0.28104952]
[1641186887301,0.00476396,46784.0,46783.0,0.47904952]
[1641186888701,0.00476396,46784.0,46783.0,0.28104952]
[1641186889302,0.00476396,46784.0,46783.0,0.48004952]
[1641186890402,0.13504101,46784.0,46783.0,0.48004952]
[1641186890603,0.13504101,46784.0,46783.0,0.28104952]
[1641186891003,0.00476396,46784.0,46783.0,0.28104952]
[1641186891204,0.00476396,46784.0,46783.0,0.47904952]
[1641186891609,0.00476396,46784.0,46783.0,0.33871385]
[1641186892205,0.00476396,46784.0,46783.0,0.47904952]
[1641186892506,0.00476396,46784.0,46783.0,0.28104952]
[1641186893208,0.00476396,46784.0,46783.0,0.47904952]
[1641186895306,0.00476396,46784.0,46783.0,0.47804952]
[1641186896406,0.00476396,46784.0,46783.0,0.28104952]
[1641186897308,0.00476396,46784.0,46783.0,0.48004952]
[1641186898708,0.00476396,46784.0,46783.0,0.28104952]
[1641186899109,0.00476396,46784.0,46783.0,0.25967419]
[1641186899312,0.18476396,46784.0,46783.0,0.11933852]
[1641186899612,0.18476396,46784.0,46776.0,0.49928529]
[1641186899809,0.18476396,46784.0,46770.0,3.78573933]
[1641186899810,0.00476396,46784.0,46770.0,3.78573933]
[1641186900010,0.18476396,46784.0,46775.0,0.31957844]
[1641186900211,0.18476396,46784.0,46771.0,0.2120267]
[1641186900411,0.14033567,46779.0,46771.0,0.2120267]
[1641186900612,0.20105567,46779.0,46772.0,0.18]
[1641186900812,0.20105567,46779.0,46773.0,0.02137952]
[1641186901014,0.36626561,46778.0,46773.0,0.02137952]
[1641186901213,0.36626561,46778.0,46774.0,0.01268939]
[1641186901715,0.0062807,46777.0,46774.0,0.01268939]
[1641186901914,0.0062807,46777.0,46775.0,0.01211639]
[1641186902516,0.0062807,46778.0,46775.0,0.01211639]
[1641186902716,0.0062807,46776.0,46774.0,0.01211639]
[1641186902917,0.0062807,46776.0,46775.0,1.34522379]
[1641186903117,0.35998491,46779.0,46776.0,0.01211639]
[1641186903417,1.44567511,46791.0,46778.0,0.18096433]
[1641186903617,1.44567511,46791.0,46785.0,0.02137411]
[1641186903816,1.44567511,46791.0,46785.0,0.10278811]
[1641186904117,0.14033567,46793.0,46786.0,0.000534]
[1641186904317,0.14033567,46793.0,46786.0,0.01264784]
[1641186904819,0.14033567,46793.0,46787.0,0.01211384]
[1641186905317,0.31033567,46793.0,46788.0,0.321096]
[1641186905517,0.31033567,46793.0,46790.0,0.42744037]
[1641186905917,0.31033567,46793.0,46791.0,0.01211384]
[1641186906319,0.17,46793.0,46791.0,0.01211384]
[1641186906518,0.18,46796.0,46791.0,0.01211384]
[1641186906919,0.18,46796.0,46786.0,0.01211384]
[1641186907118,0.14033567,46800.0,46785.0,0.17150378]
[1641186907320,0.187,46796.0,46788.0,0.3831623]
[1641186907719,0.187,46796.0,46789.0,0.315978]
[1641186907920,0.187,46796.0,46789.0,0.3280917]
[1641186908323,0.187,46796.0,46790.0,0.0121137]
[1641186908541,0.367,46796.0,46790.0,0.0121137]
[1641186908721,0.13247991,46795.0,46790.0,0.0121137]
[1641186909329,0.32147991,46795.0,46789.0,0.0121137]
[1641186909720,0.32147991,46795.0,46788.0,0.3831623]
[1641186909924,0.32147991,46795.0,46790.0,0.0121139]
[1641186910320,0.32147991,46795.0,46789.0,0.0121139]
[1641186910621,0.13247991,46795.0,46789.0,0.0121139]
[1641186910820,0.13247991,46794.0,46789.0,0.0121139]
[1641186911321,0.189,46794.0,46789.0,0.0121139]
[1641186912622,0.18,46796.0,46789.0,0.0121139]
[1641186912822,0.84149372,46794.0,46789.0,0.0121139]
[1641186914325,0.36062223,46791.0,46789.0,0.0121139]
[1641186915326,0.54562223,46791.0,46789.0,0.0121139]
[1641186916345,0.11819187,46791.0,46789.0,0.0121139]
[1641186916545,0.84149372,46794.0,46790.0,0.32043]
[1641186917446,1.02649372,46794.0,46790.0,0.32043]
[1641186918246,0.00555269,46793.0,46790.0,0.32043]
[1641186919348,0.18655269,46793.0,46790.0,0.32043]
[1641186919748,0.00555269,46792.0,46790.0,0.32043]
[1641186921149,0.00555269,46793.0,46790.0,0.32043]
[1641186921350,0.00555269,46791.0,46790.0,0.32043]
[1641186921549,0.18555269,46792.0,46790.0,0.32043]
[1641186921750,0.18555269,46792.0,46790.0,0.41519887]
[1641186921950,0.00555269,46791.0,46790.0,0.32043]
[1641186922752,0.00555269,46791.0,46790.0,0.42730753]
[1641186922950,0.00555269,46794.0,46790.0,0.42730753]
[1641186923152,0.00555269,46791.0,46790.0,0.42730753]
[1641186923351,0.18455269,46791.0,46790.0,0.42730753]
[1641186923554,0.179,46791.0,46790.0,0.4151941]
[1641186923851,0.18455269,46791.0,46790.0,0.42730758]
[1641186924152,0.18455269,46791.0,46790.0,0.10687758]
[1641186924652,0.00555269,46791.0,46790.0,0.10687758]
[1641186925055,0.00555269,46797.0,46790.0,0.10687758]
[1641186925255,0.00555269,46791.0,46790.0,0.10687758]
[1641186925552,0.18255269,46791.0,46790.0,0.0947641]
[1641186925753,0.177,46791.0,46786.0,0.51296556]
[1641186925954,0.18255269,46791.0,46790.0,0.01211354]
[1641186926353,0.00555269,46790.0,46788.0,0.18]
[1641186926553,0.18255269,46791.0,46788.0,0.18]
[1641186926854,0.00555269,46789.0,46788.0,0.18]
[1641186927054,0.00555269,46790.0,46789.0,0.32232]
[1641186927355,0.00555269,46789.0,46788.0,0.498866]
[1641186927654,0.00555269,46790.0,46788.0,0.498866]
[1641186928059,0.00555269,46795.0,46788.0,0.498866]
[1641186928455,0.00555269,46795.0,46789.0,0.02137086]
[1641186929256,0.36627272,46795.0,46789.0,0.02137086]
[1641186929457,0.55327272,46795.0,46789.0,0.02137086]
[1641186929858,0.00555269,46794.0,46789.0,0.02137086]
[1641186931460,0.19055269,46794.0,46789.0,0.02137086]
[1641186931858,0.00555269,46793.0,46789.0,0.02137086]
[1641186932158,0.00555269,46793.0,46790.0,0.319439]
[1641186932658,0.00555269,46793.0,46790.0,0.499439]
[1641186933263,0.00555269,46795.0,46790.0,0.499439]
[1641186933462,0.00555269,46792.0,46790.0,0.499439]
[1641186933862,0.00555269,46794.0,46790.0,0.499439]
[1641186934063,0.00555269,46791.0,46790.0,0.499439]
[1641186934262,0.00555269,46791.0,46790.0,0.319439]
[1641186934462,0.00555269,46793.0,46790.0,0.319439]
[1641186934862,0.00555269,46795.0,46790.0,0.319439]
[1641186935364,0.19255269,46795.0,46790.0,0.319439]
[1641186935964,0.00555269,46794.0,46790.0,0.319439]
[1641186937363,0.18,46794.0,46789.0,0.02137086]
[1641186937764,0.00555269,46793.0,46789.0,0.02137086]
[1641186938963,0.00555269,46795.0,46789.0,0.02137086]
[1641186939164,0.00555269,46792.0,46789.0,0.02137086]
[1641186939565,0.183,46793.0,46789.0,0.02137086]
[1641186939965,0.00555269,46791.0,46789.0,0.02137086]
[1641186940164,0.00555269,46792.0,46789.0,0.02137086]
[1641186940367,0.00555269,46790.0,46789.0,0.02137086]
[1641186940666,0.00555269,46792.0,46789.0,0.02137086]
[1641186940967,0.00555269,46790.0,46789.0,0.02137086]
[1641186941165,0.00555269,46791.0,46789.0,0.02137086]
[1641186941465,0.00555269,46790.0,46789.0,0.02137086]
[1641186941965,0.00555269,46791.0,46789.0,0.02137086]
[1641186942265,0.00555269,46790.0,46789.0,0.41787832]
[1641186942666,0.00555269,46791.0,46789.0,0.41787832]
[1641186942867,0.00555269,46790.0,46789.0,0.41787832]
[1641186943268,0.00555269,46794.0,46789.0,0.41787832]
[1641186943570,0.00555269,46790.0,46789.0,0.41787832]
[1641186943768,0.00555269,46793.0,46789.0,0.41787832]
[1641186943968,0.00555269,46790.0,46789.0,0.41787832]
[1641186944267,0.00555269,46792.0,46789.0,0.41787832]
[1641186944468,0.00555269,46790.0,46789.0,0.41787832]
[1641186944670,0.00555269,46791.0,46789.0,0.41787832]
[1641186944871,0.00555269,46790.0,46789.0,0.41787832]
[1641186945469,0.00555269,46790.0,46789.0,0.02137086]
[1641186945671,0.00555269,46794.0,46789.0,0.02137086]
[1641186945970,0.00555269,46790.0,46789.0,0.02137086]
[1641186946372,0.00555269,46793.0,46789.0,0.02137086]
[1641186946772,0.00555269,46794.0,46789.0,0.02137086]
[1641186946973,0.84704641,46792.0,46789.0,1.23149948]
[1641186947172,0.84149372,46792.0,46789.0,1.23149948]
[1641186947572,0.00555269,46791.0,46789.0,1.23149948]
[1641186951279,0.00555269,46791.0,46790.0,0.02136992]
[1641186952275,0.00555269,46791.0,46790.0,0.22137455]
[1641186952477,0.00555269,46791.0,46790.0,1.43150317]
[1641186953577,0.00555269,46792.0,46790.0,1.43150317]
[1641186955177,0.00555269,46792.0,46791.0,0.42743141]
[1641186956078,0.00555269,46799.0,46791.0,0.42743141]
[1641186956379,0.00555269,46792.0,46791.0,0.42743141]
[1641186956578,0.00555269,46798.0,46791.0,1.63873671]
[1641186956778,0.00555269,46792.0,46791.0,1.74707874]
[1641186956979,0.00555269,46792.0,46791.0,1.65084979]
[1641186957179,0.00555269,46797.0,46791.0,1.63873671]
[1641186957379,0.00555269,46792.0,46791.0,1.74708002]
[1641186957579,0.00555269,46792.0,46791.0,1.65084991]
[1641186957979,0.00555269,46796.0,46791.0,1.63873671]
[1641186958180,0.00555269,46792.0,46791.0,1.74708519]
[1641186958380,0.00555269,46792.0,46791.0,1.65084998]
[1641186958579,1.58601078,46800.0,46792.0,0.321318]
[1641186958983,0.00555127,46792.0,46791.0,1.74708472]
[1641186959184,0.00555127,46799.0,46791.0,1.63873671]
[1641186959382,0.00555127,46799.0,46791.0,1.73497303]
[1641186959584,0.18,46796.0,46791.0,1.73497303]
[1641186959783,0.24338,46796.0,46792.0,1.2113053]
[1641186959984,0.18,46793.0,46792.0,1.2113053]
[1641186960184,0.18,46793.0,46788.0,1.33110194]
[1641186961283,0.14033567,46791.0,46788.0,1.33110194]
[1641186961486,0.14033567,46791.0,46786.0,1.3524756]
[1641186961884,0.18,46788.0,46786.0,1.3524756]
[1641186962085,0.14033567,46791.0,46786.0,1.3524756]
[1641186962486,0.14033567,46791.0,46786.0,0.02137366]
[1641186962987,0.14033567,46791.0,46787.0,0.11175325]
[1641186963388,0.14033567,46791.0,46786.0,0.02137366]
[1641186963389,0.33033567,46791.0,46786.0,0.02137366]
[1641186964091,0.33033567,46791.0,46787.0,0.11175357]
[1641186964689,0.14033567,46791.0,46788.0,0.01211398]
[1641186964888,0.14033567,46791.0,46787.0,0.11175357]
[1641186965091,0.14033567,46791.0,46789.0,0.11175357]
[1641186965291,0.14033567,46791.0,46788.0,0.11175357]
[1641186965488,0.32833567,46791.0,46786.0,0.02137366]
[1641186965889,0.32833567,46791.0,46787.0,0.12423279]
[1641186966391,0.32833567,46791.0,46788.0,0.11211843]
[1641186966593,0.14033567,46791.0,46788.0,0.11211843]
[1641186967192,0.14033567,46791.0,46787.0,0.11211843]
[1641186967392,0.32733567,46791.0,46786.0,0.02137366]
[1641186967991,0.32733567,46791.0,46787.0,0.11210734]
[1641186968691,0.14033567,46791.0,46787.0,0.11210734]
[1641186969091,0.18,46790.0,46786.0,1.21144874]
[1641186969293,0.07517,46790.0,46786.0,1.21144874]
[1641186969692,0.07517,46790.0,46784.0,1.21144874]
[1641186970494,0.07517,46790.0,46786.0,0.11124851]
[1641186971097,0.12814901,46789.0,46786.0,0.11124851]
[1641186972096,0.12814901,46789.0,46786.0,0.1326224]
[1641186972510,0.12814901,46789.0,46787.0,0.11124851]
[1641186972707,0.12814901,46789.0,46787.0,0.12336286]
[1641186973007,0.12814901,46789.0,46787.0,0.11124851]
[1641186973207,0.12814901,46789.0,46786.0,0.02137389]
[1641186973408,0.31414901,46789.0,46786.0,1.23282263]
[1641186974008,0.12814901,46788.0,46786.0,1.23282263]
[1641186974209,0.12814901,46788.0,46786.0,0.02137389]
[1641186974713,0.00555318,46787.0,46786.0,0.02137389]
[1641186975109,0.00555318,46787.0,46786.0,0.13244638]
[1641186975510,0.19955318,46787.0,46786.0,0.13244638]
[1641186975710,0.32770219,46787.0,46786.0,0.11107249]
[1641186976210,0.32770219,46787.0,46785.0,1.35178441]
[1641186976611,0.00555318,46786.0,46785.0,1.35178441]
[1641186977319,0.13370219,46786.0,46785.0,1.47496052]
[1641186977521,0.29270219,46786.0,46785.0,0.26351178]
[1641186978719,0.13370219,46786.0,46785.0,0.26351178]
[1641186979219,0.13370219,46786.0,46785.0,1.47496052]
[1641186979421,0.14033567,46791.0,46786.0,0.03928936]
[1641186979621,0.14033567,46791.0,46785.0,1.47496052]
[1641186979924,0.14033567,46791.0,46787.0,0.11106128]
[1641186980121,0.14033567,46791.0,46786.0,0.11106128]
[1641186980521,0.18,46789.0,46786.0,0.11106128]
[1641186980721,0.18,46789.0,46785.0,1.35178441]
[1641186980922,0.00480245,46788.0,46785.0,1.35178441]
[1641186981323,0.00480245,46790.0,46785.0,1.35178441]
[1641186981523,0.193,46788.0,46785.0,0.14033567]
[1641186981923,0.00480245,46787.0,46785.0,0.14033567]
[1641186982123,0.00480245,46787.0,46786.0,0.11103671]
[1641186983225,0.00480245,46788.0,46786.0,0.11103671]
[1641186983426,0.20080245,46787.0,46786.0,0.11103671]
[1641186984726,0.00480245,46787.0,46786.0,0.11103671]
[1641186985130,0.00480245,46787.0,46785.0,1.35178441]
[1641186985530,0.196,46787.0,46786.0,0.11075269]
[1641186985929,0.196,46787.0,46785.0,1.35178441]
[1641186986629,0.196,46787.0,46785.0,0.14033567]
[1641186986828,0.84047001,46788.0,46785.0,0.14033567]
[1641186987530,1.03447001,46788.0,46785.0,0.14033567]
[1641186988832,0.84047001,46788.0,46785.0,0.14033567]
[1641186989531,1.03347001,46788.0,46785.0,0.14033567]
[1641186990134,1.03347001,46788.0,46786.0,0.11069594]
[1641186990733,0.84047001,46788.0,46786.0,0.11069594]
[1641186990934,0.84047001,46788.0,46785.0,0.14033567]
[1641186991534,1.03347001,46788.0,46785.0,0.14033567]
[1641186992839,0.84047001,46788.0,46785.0,0.14033567]
[1641186993539,1.03347001,46788.0,46785.0,0.14033567]
[1641186994740,0.84047001,46788.0,46785.0,0.14033567]
[1641186995239,0.97108138,46788.0,46785.0,0.14033567]
[1641186995442,1.16308138,46788.0,46785.0,0.14033567]
[1641186996243,1.16308138,46788.0,46787.0,0.02137323]
[1641186996441,1.16308138,46788.0,46787.0,0.09650323]
[1641186996842,0.84047001,46788.0,46787.0,0.10861724]
[1641186997044,0.36046029,46789.0,46787.0,0.21930662]
[1641186997646,0.36046029,46789.0,46787.0,0.10861724]
[1641186997846,0.36046029,46789.0,46788.0,0.01211401]
[1641186999359,0.50446029,46789.0,46788.0,0.01211401]
[1641187000165,0.144,46789.0,46788.0,0.01211401]
[1641187000861,0.14880248,46789.0,46788.0,0.01211401]
[1641187001362,0.18880248,46789.0,46788.0,0.01211401]
[1641187002364,0.31940227,46789.0,46788.0,0.01211401]
[1641187002764,0.13540227,46789.0,46788.0,0.01211401]
[1641187004965,0.14033567,46795.0,46789.0,0.13080381]
[1641187005167,0.14033567,46795.0,46788.0,0.01211401]
[1641187005366,0.18,46794.0,46787.0,0.02137323]
[1641187005967,0.84159102,46790.0,46787.0,0.02137323]
[1641187006173,0.84159102,46790.0,46788.0,0.01211371]
[1641187006373,0.84159102,46790.0,46788.0,0.33326171]
[1641187006773,0.84159102,46790.0,46789.0,0.01211371]
[1641187007374,0.98459102,46790.0,46789.0,0.01211371]
[1641187007975,0.98459102,46790.0,46788.0,0.01211371]
[1641187008178,0.143,46790.0,46788.0,0.01211371]
[1641187008378,0.143,46790.0,46789.0,0.01211371]
[1641187008776,0.84159102,46791.0,46789.0,0.01211371]
[1641187009177,0.84159102,46791.0,46788.0,0.01211371]
[1641187009379,0.84159102,46790.0,46787.0,0.02137323]
[1641187009677,0.84159102,46790.0,46788.0,0.01211395]
[1641187010079,0.84159102,46789.0,46788.0,0.01211395]
[1641187010778,0.84159102,46790.0,46788.0,0.01211395]
[1641187011483,1.01059102,46790.0,46788.0,0.01211395]
[1641187012284,0.84159102,46789.0,46788.0,0.01211395]
[1641187012685,0.84159102,46789.0,46788.0,0.33153095]
[1641187013086,0.84159102,46790.0,46788.0,0.33153095]
[1641187013487,0.183,46789.0,46788.0,0.01211395]
[1641187013690,0.183,46789.0,46785.0,1.2107364]
[1641187014088,0.183,46789.0,46786.0,0.01211452]
[1641187014788,0.84159102,46790.0,46786.0,0.01211452]
[1641187014989,0.18,46794.0,46786.0,0.01211452]
[1641187015389,0.183,46790.0,46786.0,0.01211452]
[1641187015788,0.183,46790.0,46785.0,0.01211452]
[1641187015989,0.183,46790.0,46787.0,0.01211452]
[1641187016290,0.183,46790.0,46786.0,0.12321673]
[1641187016788,0.18,46794.0,46784.0,0.30174105]
[1641187016989,0.18,46794.0,46784.0,1.51247745]
[1641187017189,0.18,46794.0,46787.0,0.01211405]
[1641187017390,0.368,46794.0,46787.0,0.01211405]
[1641187017590,0.368,46794.0,46785.0,0.50540972]
[1641187017791,0.368,46794.0,46788.0,0.01211405]
[1641187018192,0.368,46794.0,46786.0,0.12323142]
[1641187018392,0.368,46794.0,46786.0,0.11111737]
[1641187018592,0.368,46794.0,46785.0,0.17376967]
[1641187018795,0.18,46794.0,46787.0,0.01211419]
[1641187019192,0.18,46794.0,46786.0,0.12324951]
[1641187019393,0.368,46794.0,46786.0,0.12324951]
[1641187019593,0.368,46794.0,46787.0,0.12324951]
[1641187020294,0.368,46794.0,46787.0,0.01211419]
[1641187020495,0.12666002,46793.0,46788.0,0.01211419]
[1641187021093,0.12666002,46793.0,46786.0,0.01211419]
[1641187021396,0.31466002,46793.0,46786.0,0.01211419]
[1641187022295,0.12666002,46792.0,46787.0,0.11116714]
[1641187022795,0.12666002,46792.0,46788.0,0.01211419]
[1641187023195,0.12666002,46791.0,46788.0,0.01211419]
[1641187023794,0.12666002,46791.0,46786.0,0.01211419]
[1641187023997,0.12666002,46790.0,46785.0,0.17376967]
[1641187024195,0.12666002,46790.0,46789.0,0.11116599]
[1641187024395,0.12666002,46790.0,46786.0,0.1232798]
[1641187024594,0.12666002,46790.0,46789.0,0.11116599]
[1641187024797,0.20695002,46790.0,46789.0,0.11116599]
[1641187024997,0.12666002,46789.0,46787.0,0.12328021]
[1641187025197,0.12666002,46789.0,46787.0,0.01211422]
[1641187025397,0.12666002,46789.0,46785.0,1.2107364]
[1641187025799,0.12666002,46789.0,46786.0,0.11116621]
[1641187025999,0.14033567,46787.0,46785.0,1.2107364]
[1641187026199,0.14033567,46787.0,46784.0,0.02137448]
[1641187026798,0.14033567,46787.0,46785.0,0.11116329]
[1641187027399,0.32833567,46787.0,46785.0,0.11116329]
[1641187027601,0.12666002,46786.0,46785.0,0.11116329]
[1641187028200,0.32833567,46787.0,46785.0,0.11116329]
[1641187028401,0.32833567,46787.0,46785.0,0.19627988]
[1641187028802,0.14033567,46787.0,46786.0,0.12327797]
[1641187029404,0.31833567,46787.0,46786.0,0.12327797]
[1641187030807,0.97794397,46787.0,46786.0,0.12327797]
[1641187031409,1.15894397,46787.0,46786.0,0.12327797]
[1641187032008,1.15894397,46787.0,46786.0,0.44313997]
[1641187032209,1.15894397,46787.0,46786.0,0.12327797]
[1641187033411,1.14294397,46787.0,46786.0,0.12327797]
[1641187033613,1.32294397,46787.0,46786.0,0.12327797]
[1641187033811,1.32294397,46787.0,46784.0,1.2107364]
[1641187034011,0.57788567,46787.0,46784.0,1.2107364]
[1641187034212,0.14033567,46785.0,46782.0,1.2107364]
[1641187034413,0.18,46783.0,46782.0,1.2107364]
[1641187034811,0.14033567,46785.0,46782.0,1.2107364]
[1641187035411,0.50733567,46785.0,46779.0,0.08761355]
[1641187035815,0.32733567,46785.0,46780.0,0.12188248]
[1641187036414,0.32733567,46785.0,46781.0,0.12188248]
[1641187036814,0.14033567,46785.0,46782.0,0.01211597]
[1641187037016,0.14033567,46785.0,46784.0,0.30403892]
[1641187037413,0.16433567,46785.0,46784.0,0.30403892]
[1641187037614,0.16433567,46785.0,46784.0,0.31615413]
[1641187038216,0.16433567,46785.0,46784.0,0.425902]
[1641187038914,0.14033567,46785.0,46784.0,0.425902]
[1641187039415,0.30733567,46785.0,46784.0,0.425902]
[1641187040226,0.167,46785.0,46784.0,0.425902]
[1641187040631,0.14033567,46790.0,46784.0,0.425902]
[1641187041029,0.14033567,46790.0,46785.0,0.01211521]
[1641187041230,0.14033567,46790.0,46785.0,0.12186308]
[1641187041429,0.31633567,46790.0,46785.0,0.12186308]
[1641187041828,0.31633567,46790.0,46786.0,0.01211521]
[1641187042429,0.31633567,46790.0,46785.0,0.01211521]
[1641187042630,0.39011567,46790.0,46785.0,0.01211521]
[1641187042930,0.21411567,46790.0,46785.0,0.01211521]
[1641187043429,0.39411567,46790.0,46785.0,0.01211521]
[1641187043630,0.39411567,46790.0,46786.0,0.10985928]
[1641187044531,0.12561226,46789.0,46786.0,0.10985928]
[1641187044931,0.12561226,46789.0,46785.0,0.10985928]
[1641187045531,0.28961226,46789.0,46785.0,0.10985928]
[1641187045731,0.28961226,46789.0,46786.0,0.0121142]
[1641187046333,0.28961226,46789.0,46784.0,0.30403892]
[1641187046633,0.12561226,46788.0,46787.0,0.01211393]
[1641187046833,0.12561226,46788.0,46787.0,0.07897393]
[1641187047036,0.12561226,46788.0,46787.0,0.06686]
[1641187047235,0.12561226,46788.0,46787.0,0.17761001]
[1641187047436,0.22461226,46788.0,46787.0,0.19068827]
[1641187048137,0.099,46788.0,46787.0,0.19068827]
[1641187048337,0.099,46788.0,46787.0,0.35239698]
[1641187048538,0.12561226,46794.0,46789.0,0.11899585]
[1641187048738,0.14033567,46795.0,46790.0,0.27380399]
[1641187048938,1.44567511,46798.0,46790.0,0.27380399]
[1641187048939,1.38067511,46798.0,46793.0,0.18]
[1641187049139,1.5828,46802.0,46794.0,0.0213698]
[1641187049340,1.4567,46806.0,46794.0,0.0230208]
[1641187049543,0.091,46798.0,46794.0,0.03513473]
[1641187049740,0.091,46798.0,46795.0,0.01211393]
[1641187049943,0.12261066,46797.0,46795.0,0.07897492]
[1641187050341,0.12261066,46797.0,46796.0,0.14033567]
[1641187051143,0.12261066,46797.0,46796.0,0.15244725]
[1641187051340,0.12261066,46797.0,46796.0,0.14033567]
[1641187051541,0.12261066,46797.0,46796.0,0.33333567]
[1641187051740,0.12261066,46797.0,46796.0,0.34544729]
[1641187051940,0.12261066,46797.0,46796.0,0.33333567]
[1641187052142,0.12261066,46806.0,46796.0,0.33333567]
[1641187052340,0.30261066,46806.0,46796.0,0.33333567]
[1641187052841,0.12261066,46805.0,46796.0,0.14033567]
[1641187053441,0.12261066,46805.0,46796.0,0.31733567]
[1641187053442,0.25461066,46805.0,46796.0,0.31733567]
[1641187054043,0.25461066,46805.0,46799.0,0.18]
[1641187054242,0.25461066,46805.0,46803.0,0.0213659]
[1641187054442,0.12261066,46804.0,46803.0,0.0213659]
[1641187055246,0.32033567,46813.0,46803.0,0.0213659]
[1641187055448,0.49943815,46807.0,46803.0,0.2143659]
[1641187056850,0.49943815,46807.0,46803.0,0.0213659]
[1641187057451,0.35910248,46807.0,46803.0,0.2181599]
[1641187057753,0.35910248,46808.0,46806.0,0.02136452]
[1641187058152,0.35910248,46808.0,46807.0,0.55491057]
[1641187058352,0.35937534,46811.0,46808.0,0.009794]
[1641187058553,0.35937534,46811.0,46810.0,0.18]
[1641187058750,0.35937534,46811.0,46810.0,0.25865]
[1641187058951,0.35937534,46811.0,46810.0,0.07865]
[1641187059151,0.35937534,46811.0,46810.0,0.07875]
[1641187059552,0.35937534,46811.0,46810.0,0.26675]
[1641187059752,0.83790578,46814.0,46810.0,0.26675]
[1641187060153,0.97824145,46818.0,46810.0,0.26675]
[1641187060753,0.97824145,46818.0,46810.0,0.07875]
[1641187060954,0.97824145,46818.0,46810.0,0.0001]
[1641187061354,0.95276614,46817.0,46810.0,0.0001]
[1641187061553,0.95276614,46817.0,46810.0,0.1571]
[1641187062154,0.95276614,46817.0,46810.0,0.157]
[1641187062358,0.95276614,46817.0,46813.0,0.0001]
[1641187063457,0.95276614,46817.0,46813.0,0.1751]
[1641187064060,0.95276614,46817.0,46813.0,0.23759]
[1641187064259,0.11486036,46817.0,46813.0,0.23759]
[1641187064860,0.11486036,46817.0,46813.0,0.06259]
[1641187065059,0.97824145,46818.0,46813.0,0.06259]
[1641187065260,0.97824145,46818.0,46815.0,0.0001]
[1641187065964,0.14033567,46818.0,46815.0,0.0001]
[1641187067464,0.14033567,46818.0,46815.0,0.1681]
[1641187068269,0.14033567,46818.0,46816.0,0.0001]
[1641187069466,0.14033567,46818.0,46816.0,0.1301]
[1641187069867,0.95113485,46817.0,46816.0,0.1301]